[Event "Titled Tuesday Blitz March 22 Late 2022"]
[White "Elissalt Cardenas, Hector"]
[Black "Sapunov, Evgeny"]
[WhiteFideId "3500632"]
[BlackFideId "4126661"]
[WhiteElo "2159"]
[BlackElo "2470"]
[Result "1/2-1/2"]
[Round "08"]
[TimeControl "180+1"]
[Date "2022.03.22"]
[WhiteClock "0:00:18"]
[BlackClock "0:00:25"]

1. d4 {[%clk 0:03:00]}  Nf6 {[%clk 0:02:58]} 2. Nf3 {[%clk 0:02:57]}  g6 {[%clk 0:02:58]} 3. c4 {[%clk 0:02:49]}  Bg7 {[%clk 0:02:57]} 4. Nc3 {[%clk 0:02:50]}  O-O {[%clk 0:02:58]} 5. Bg5 {[%clk 0:02:50]}  d6 {[%clk 0:02:58]} 6. Qd2 {[%clk 0:02:50]}  c5 {[%clk 0:02:57]} 7. d5 {[%clk 0:02:36]}  a6 {[%clk 0:02:57]} 8. e4 {[%clk 0:02:29]}  b5 {[%clk 0:02:52]} 9. cxb5 {[%clk 0:02:23]}  Qa5 {[%clk 0:02:47]} 10. b6 {[%clk 0:02:22]}  Nbd7 {[%clk 0:02:46]} 11. Bd3 {[%clk 0:02:13]}  Rb8 {[%clk 0:02:45]} 12. O-O {[%clk 0:02:04]}  Rxb6 {[%clk 0:02:43]} 13. Rab1 {[%clk 0:01:57]}  Ng4 {[%clk 0:02:34]} 14. Bxe7 {[%clk 0:01:51]}  Re8 {[%clk 0:02:34]} 15. Bh4 {[%clk 0:01:37]}  Nge5 {[%clk 0:02:14]} 16. Bg3 {[%clk 0:01:35]}  Nxf3+ {[%clk 0:02:11]} 17. gxf3 {[%clk 0:01:35]}  Ne5 {[%clk 0:02:09]} 18. Be2 {[%clk 0:01:35]}  Qb4 {[%clk 0:02:07]} 19. f4 {[%clk 0:01:21]}  Nc4 {[%clk 0:02:03]} 20. Bxc4 {[%clk 0:01:21]}  Qxc4 {[%clk 0:02:03]} 21. e5 {[%clk 0:01:18]}  Bf5 {[%clk 0:01:54]} 22. Rbc1 {[%clk 0:01:12]}  Rd8 {[%clk 0:01:23]} 23. Rfe1 {[%clk 0:01:07]}  Qd4 {[%clk 0:01:18]} 24. Qe2 {[%clk 0:01:02]}  h5 {[%clk 0:01:13]} 25. h4 {[%clk 0:00:57]}  Re8 {[%clk 0:01:09]} 26. b3 {[%clk 0:00:55]}  Qb4 {[%clk 0:01:05]} 27. Qe3 {[%clk 0:00:53]}  Bh6 {[%clk 0:01:02]} 28. Qf3 {[%clk 0:00:51]}  dxe5 {[%clk 0:00:58]} 29. d6 {[%clk 0:00:47]}  e4 {[%clk 0:00:57]} 30. Nd5 {[%clk 0:00:37]}  exf3 {[%clk 0:00:46]} 31. Rxe8+ {[%clk 0:00:36]}  Kg7 {[%clk 0:00:46]} 32. Nxb4 {[%clk 0:00:36]}  Rxb4 {[%clk 0:00:39]} 33. Rd1 {[%clk 0:00:34]}  Rd4 {[%clk 0:00:39]} 34. Rxd4 {[%clk 0:00:31]}  cxd4 {[%clk 0:00:40]} 35. Re5 {[%clk 0:00:32]}  d3 {[%clk 0:00:32]} 36. Rd5 {[%clk 0:00:30]}  Bd7 {[%clk 0:00:31]} 37. Rxd3 {[%clk 0:00:30]}  Kf6 {[%clk 0:00:32]} 38. Rxf3 {[%clk 0:00:29]}  Ke6 {[%clk 0:00:32]} 39. f5+ {[%clk 0:00:30]}  gxf5 {[%clk 0:00:31]} 40. Re3+ {[%clk 0:00:29]}  Bxe3 {[%clk 0:00:31]} 41. fxe3 {[%clk 0:00:29]}  Kd5 {[%clk 0:00:30]} 42. Kf2 {[%clk 0:00:29]}  Ke4 {[%clk 0:00:31]} 43. Ke2 {[%clk 0:00:27]}  Bb5+ {[%clk 0:00:31]} 44. Kd2 {[%clk 0:00:27]}  Kf3 {[%clk 0:00:31]} 45. Bf4 {[%clk 0:00:27]}  Kg4 {[%clk 0:00:32]} 46. Bg5 {[%clk 0:00:27]}  f4 {[%clk 0:00:32]} 47. exf4 {[%clk 0:00:27]}  Kf5 {[%clk 0:00:32]} 48. Kc3 {[%clk 0:00:26]}  f6 {[%clk 0:00:32]} 49. Bh6 {[%clk 0:00:25]}  Kg4 {[%clk 0:00:33]} 50. Bg7 {[%clk 0:00:25]}  Kxh4 {[%clk 0:00:31]} 51. Bxf6+ {[%clk 0:00:25]}  Kg4 {[%clk 0:00:31]} 52. a4 {[%clk 0:00:25]}  Be8 {[%clk 0:00:30]} 53. Kb4 {[%clk 0:00:22]}  Kxf4 {[%clk 0:00:27]} 54. Kc5 {[%clk 0:00:21]}  Kf5 {[%clk 0:00:28]} 55. Be7 {[%clk 0:00:21]}  Ke6 {[%clk 0:00:26]} 56. Kb6 {[%clk 0:00:21]}  h4 {[%clk 0:00:22]} 57. Bxh4 {[%clk 0:00:21]}  Kxd6 {[%clk 0:00:22]} 58. Kxa6 {[%clk 0:00:21]}  Bf7 {[%clk 0:00:23]} 59. b4 {[%clk 0:00:21]}  Bb3 {[%clk 0:00:22]} 60. a5 {[%clk 0:00:21]}  Bc4+ {[%clk 0:00:22]} 61. Kb6 {[%clk 0:00:20]}  Kd7 {[%clk 0:00:21]} 62. Bg3 {[%clk 0:00:19]}  Bd5 {[%clk 0:00:20]} 63. a6 {[%clk 0:00:19]}  Be4 {[%clk 0:00:20]} 64. b5 {[%clk 0:00:19]}  Bf3 {[%clk 0:00:20]} 65. Kc5 {[%clk 0:00:18]}  Be2 {[%clk 0:00:20]} 66. Kb6 {[%clk 0:00:16]}  Bf1 {[%clk 0:00:20]} 67. a7 {[%clk 0:00:16]}  Bg2 {[%clk 0:00:20]} 68. Ka6 {[%clk 0:00:16]}  Kc8 {[%clk 0:00:20]} 69. b6 {[%clk 0:00:16]}  Bb7+ {[%clk 0:00:21]} 70. Kb5 {[%clk 0:00:16]}  Ba8 {[%clk 0:00:22]} 71. Kc5 {[%clk 0:00:16]}  Bb7 {[%clk 0:00:22]} 72. Bc7 {[%clk 0:00:16]}  Ba8 {[%clk 0:00:23]} 73. Bd6 {[%clk 0:00:16]}  Bb7 {[%clk 0:00:23]} 74. Bc7 {[%clk 0:00:17]}  Ba8 {[%clk 0:00:24]} 75. Bd6 {[%clk 0:00:17]}  Bb7 {[%clk 0:00:25]} 76. Bc7 {[%clk 0:00:18]} 1/2-1/2


[Site "https://www.chess.com"]

[Event "Titled Tuesday Blitz March 22 Late 2022"]
[White "Fajdetic, Hrvoje"]
[Black "Szpar, Milosz"]
[WhiteFideId "14501945"]
[BlackFideId "1184989"]
[WhiteElo "2172"]
[BlackElo "2447"]
[Result "0-1"]
[Round "08"]
[TimeControl "180+1"]
[Date "2022.03.22"]
[WhiteClock "0:00:10"]
[BlackClock "0:02:01"]

1. d4 {[%clk 0:02:59]}  Nf6 {[%clk 0:02:59]} 2. Bf4 {[%clk 0:02:59]}  c5 {[%clk 0:02:59]} 3. e3 {[%clk 0:02:58]}  Nd5 {[%clk 0:02:58]} 4. Bg3 {[%clk 0:02:29]}  Qb6 {[%clk 0:02:58]} 5. Nc3 {[%clk 0:02:29]}  Nxc3 {[%clk 0:02:58]} 6. bxc3 {[%clk 0:02:30]}  e6 {[%clk 0:02:58]} 7. Nf3 {[%clk 0:02:26]}  Qa5 {[%clk 0:02:58]} 8. Qd2 {[%clk 0:02:23]}  Be7 {[%clk 0:02:59]} 9. Bd3 {[%clk 0:02:19]}  O-O {[%clk 0:02:59]} 10. h4 {[%clk 0:02:17]}  Nc6 {[%clk 0:02:56]} 11. Ng5 {[%clk 0:02:09]}  h6 {[%clk 0:02:56]} 12. Ne4 {[%clk 0:02:08]}  d5 {[%clk 0:02:54]} 13. Nxc5 {[%clk 0:02:01]}  Bxc5 {[%clk 0:02:55]} 14. dxc5 {[%clk 0:02:00]}  Qxc5 {[%clk 0:02:56]} 15. Rb1 {[%clk 0:01:49]}  a6 {[%clk 0:02:52]} 16. O-O {[%clk 0:01:39]}  b5 {[%clk 0:02:51]} 17. e4 {[%clk 0:01:36]}  Bb7 {[%clk 0:02:44]} 18. exd5 {[%clk 0:01:32]}  Qxd5 {[%clk 0:02:44]} 19. c4 {[%clk 0:01:25]}  bxc4 {[%clk 0:02:41]} 20. Rxb7 {[%clk 0:01:25]}  cxd3 {[%clk 0:02:41]} 21. Qxd3 {[%clk 0:01:23]}  Qxa2 {[%clk 0:02:40]} 22. Qd7 {[%clk 0:00:54]}  Rac8 {[%clk 0:02:26]} 23. Bd6 {[%clk 0:00:51]}  Nb8 {[%clk 0:02:08]} 24. Qe7 {[%clk 0:00:30]}  Qxc2 {[%clk 0:02:04]} 25. Rfb1 {[%clk 0:00:20]}  Qf5 {[%clk 0:01:57]} 26. Rxb8 {[%clk 0:00:18]}  Rxb8 {[%clk 0:01:57]} 27. Rxb8 {[%clk 0:00:17]}  Rxb8 {[%clk 0:01:57]} 28. Bxb8 {[%clk 0:00:17]}  Qb1+ {[%clk 0:01:57]} 29. Kh2 {[%clk 0:00:15]}  Qxb8+ {[%clk 0:01:58]} 30. g3 {[%clk 0:00:15]}  Qa8 {[%clk 0:01:58]} 31. Qb4 {[%clk 0:00:13]}  a5 {[%clk 0:01:58]} 32. Qa4 {[%clk 0:00:14]}  Qf3 {[%clk 0:01:59]} 33. Kg1 {[%clk 0:00:13]}  Qd5 {[%clk 0:02:00]} 34. Kh2 {[%clk 0:00:13]}  Qc5 {[%clk 0:02:00]} 35. Kg2 {[%clk 0:00:12]}  g6 {[%clk 0:02:00]} 36. Qe8+ {[%clk 0:00:12]}  Kg7 {[%clk 0:02:00]} 37. h5 {[%clk 0:00:12]}  Qxh5 {[%clk 0:02:00]} 38. Qd8 {[%clk 0:00:11]}  Qd5+ {[%clk 0:02:00]} 39. Qxd5 {[%clk 0:00:10]}  exd5 {[%clk 0:02:01]} 0-1


[Site "https://www.chess.com"]

[Event "Titled Tuesday Blitz March 22 Late 2022"]
[White "Fishbein, Alexander"]
[Black "Przybylski, Wojciech"]
[WhiteFideId "2000377"]
[BlackFideId "1117599"]
[WhiteElo "2442"]
[BlackElo "2133"]
[Result "1/2-1/2"]
[Round "08"]
[TimeControl "180+1"]
[Date "2022.03.22"]
[WhiteClock "0:00:30"]
[BlackClock "0:00:09"]

1. e4 {[%clk 0:02:59]}  e5 {[%clk 0:02:58]} 2. Nf3 {[%clk 0:02:58]}  Nf6 {[%clk 0:02:56]} 3. Nxe5 {[%clk 0:02:58]}  d6 {[%clk 0:02:52]} 4. Nf3 {[%clk 0:02:58]}  Nxe4 {[%clk 0:02:53]} 5. d3 {[%clk 0:02:58]}  Nf6 {[%clk 0:02:53]} 6. d4 {[%clk 0:02:58]}  d5 {[%clk 0:02:53]} 7. Bd3 {[%clk 0:02:58]}  Bd6 {[%clk 0:02:54]} 8. Qe2+ {[%clk 0:02:58]}  Qe7 {[%clk 0:02:54]} 9. Qxe7+ {[%clk 0:02:57]}  Bxe7 {[%clk 0:02:54]} 10. Bf4 {[%clk 0:02:57]}  c6 {[%clk 0:02:52]} 11. Nbd2 {[%clk 0:02:57]}  h6 {[%clk 0:02:52]} 12. O-O {[%clk 0:02:56]}  Be6 {[%clk 0:02:52]} 13. Rfe1 {[%clk 0:02:53]}  Nbd7 {[%clk 0:02:52]} 14. Nb3 {[%clk 0:02:52]}  O-O-O {[%clk 0:02:47]} 15. c3 {[%clk 0:02:43]}  Rde8 {[%clk 0:02:46]} 16. a4 {[%clk 0:02:41]}  g5 {[%clk 0:02:35]} 17. Be5 {[%clk 0:02:34]}  Nxe5 {[%clk 0:02:34]} 18. Nxe5 {[%clk 0:02:34]}  Nd7 {[%clk 0:02:32]} 19. Ng6 {[%clk 0:02:26]}  Rhg8 {[%clk 0:02:22]} 20. Nxe7+ {[%clk 0:02:25]}  Rxe7 {[%clk 0:02:23]} 21. a5 {[%clk 0:02:25]}  Rge8 {[%clk 0:02:20]} 22. Re3 {[%clk 0:02:22]}  Bg4 {[%clk 0:02:15]} 23. Rxe7 {[%clk 0:02:19]}  Rxe7 {[%clk 0:02:15]} 24. f3 {[%clk 0:02:19]}  Bh5 {[%clk 0:02:10]} 25. Kf2 {[%clk 0:02:19]}  Kc7 {[%clk 0:02:09]} 26. Nd2 {[%clk 0:02:16]}  Nf6 {[%clk 0:02:02]} 27. Nf1 {[%clk 0:02:14]}  Bg6 {[%clk 0:01:59]} 28. Bxg6 {[%clk 0:02:13]}  fxg6 {[%clk 0:02:00]} 29. Ne3 {[%clk 0:02:07]}  Ne8 {[%clk 0:01:58]} 30. b3 {[%clk 0:01:58]}  Nf6 {[%clk 0:01:51]} 31. c4 {[%clk 0:01:56]}  Kd6 {[%clk 0:01:49]} 32. Rc1 {[%clk 0:01:51]}  b6 {[%clk 0:01:42]} 33. axb6 {[%clk 0:01:39]}  axb6 {[%clk 0:01:41]} 34. Ra1 {[%clk 0:01:38]}  c5 {[%clk 0:01:29]} 35. dxc5+ {[%clk 0:01:17]}  Kxc5 {[%clk 0:01:23]} 36. cxd5 {[%clk 0:01:17]}  Nxd5 {[%clk 0:01:15]} 37. Rc1+ {[%clk 0:01:13]}  Kd6 {[%clk 0:01:14]} 38. Nc4+ {[%clk 0:01:11]}  Kd7 {[%clk 0:01:05]} 39. Ra1 {[%clk 0:01:09]}  b5 {[%clk 0:00:56]} 40. Ra7+ {[%clk 0:01:08]}  Kc6 {[%clk 0:00:52]} 41. Rxe7 {[%clk 0:00:54]}  Nxe7 {[%clk 0:00:52]} 42. Ne5+ {[%clk 0:00:52]}  Kd5 {[%clk 0:00:47]} 43. Nf7 {[%clk 0:00:51]}  Nf5 {[%clk 0:00:38]} 44. g4 {[%clk 0:00:47]}  Nd4 {[%clk 0:00:38]} 45. Nxh6 {[%clk 0:00:46]}  Nxb3 {[%clk 0:00:37]} 46. Nf7 {[%clk 0:00:46]}  Nc5 {[%clk 0:00:35]} 47. Ke3 {[%clk 0:00:43]}  Ne6 {[%clk 0:00:31]} 48. Nh8 {[%clk 0:00:42]}  Nf8 {[%clk 0:00:27]} 49. Nf7 {[%clk 0:00:40]}  Ne6 {[%clk 0:00:27]} 50. Nh8 {[%clk 0:00:40]}  Nf4 {[%clk 0:00:25]} 51. Nf7 {[%clk 0:00:30]}  Ne6 {[%clk 0:00:09]} 1/2-1/2


[Site "https://www.chess.com"]

[Event "Titled Tuesday Blitz March 22 Late 2022"]
[White "Golubev, Mikhail"]
[Black "Sanchez, Robert"]
[WhiteFideId "14100983"]
[BlackFideId "2034360"]
[WhiteElo "2374"]
[BlackElo "2247"]
[Result "0-1"]
[Round "08"]
[TimeControl "180+1"]
[Date "2022.03.22"]
[WhiteClock "0:00:02"]
[BlackClock "0:00:03"]

1. d4 {[%clk 0:02:57]}  d5 {[%clk 0:02:57]} 2. c4 {[%clk 0:02:56]}  e6 {[%clk 0:02:55]} 3. Nc3 {[%clk 0:02:55]}  Nf6 {[%clk 0:02:55]} 4. Nf3 {[%clk 0:02:55]}  Be7 {[%clk 0:02:56]} 5. Bf4 {[%clk 0:02:49]}  O-O {[%clk 0:02:56]} 6. e3 {[%clk 0:02:49]}  a6 {[%clk 0:02:55]} 7. cxd5 {[%clk 0:02:48]}  exd5 {[%clk 0:02:51]} 8. Bd3 {[%clk 0:02:48]}  c5 {[%clk 0:02:50]} 9. dxc5 {[%clk 0:02:35]}  Bxc5 {[%clk 0:02:41]} 10. O-O {[%clk 0:02:32]}  Nc6 {[%clk 0:02:37]} 11. h3 {[%clk 0:02:29]}  h6 {[%clk 0:02:36]} 12. Rc1 {[%clk 0:02:28]}  Bd6 {[%clk 0:02:28]} 13. Bxd6 {[%clk 0:02:23]}  Qxd6 {[%clk 0:02:28]} 14. Bb1 {[%clk 0:02:23]}  Rd8 {[%clk 0:02:23]} 15. Nd4 {[%clk 0:01:59]}  Ne5 {[%clk 0:02:08]} 16. Nce2 {[%clk 0:01:52]}  Bd7 {[%clk 0:01:57]} 17. Ng3 {[%clk 0:01:48]}  Nc4 {[%clk 0:01:51]} 18. b3 {[%clk 0:01:08]}  Nxe3 {[%clk 0:01:48]} 19. fxe3 {[%clk 0:00:51]}  Qxg3 {[%clk 0:01:48]} 20. Rf3 {[%clk 0:00:51]}  Qg5 {[%clk 0:01:47]} 21. Qd2 {[%clk 0:00:46]}  Re8 {[%clk 0:01:38]} 22. Rcf1 {[%clk 0:00:44]}  Re7 {[%clk 0:01:33]} 23. Qf2 {[%clk 0:00:39]}  Rae8 {[%clk 0:01:30]} 24. Rg3 {[%clk 0:00:25]}  Qe5 {[%clk 0:01:17]} 25. Bf5 {[%clk 0:00:19]}  Bb5 {[%clk 0:01:10]} 26. Nxb5 {[%clk 0:00:16]}  axb5 {[%clk 0:01:10]} 27. Bd3 {[%clk 0:00:15]}  Ne4 {[%clk 0:00:57]} 28. Bxe4 {[%clk 0:00:15]}  Qxe4 {[%clk 0:00:56]} 29. Qb2 {[%clk 0:00:15]}  Qe5 {[%clk 0:00:51]} 30. Qf2 {[%clk 0:00:15]}  f6 {[%clk 0:00:39]} 31. Rf3 {[%clk 0:00:13]}  b4 {[%clk 0:00:35]} 32. Rf5 {[%clk 0:00:12]}  Qxe3 {[%clk 0:00:34]} 33. Qxe3 {[%clk 0:00:12]}  Rxe3 {[%clk 0:00:35]} 34. Rxd5 {[%clk 0:00:13]}  Re2 {[%clk 0:00:31]} 35. Rf4 {[%clk 0:00:10]}  Rxa2 {[%clk 0:00:24]} 36. Rxb4 {[%clk 0:00:10]}  Ree2 {[%clk 0:00:19]} 37. Rg4 {[%clk 0:00:09]}  Rad2 {[%clk 0:00:13]} 38. Rb5 {[%clk 0:00:07]}  Rd7 {[%clk 0:00:12]} 39. Rgb4 {[%clk 0:00:06]}  Ree7 {[%clk 0:00:11]} 40. Kh2 {[%clk 0:00:05]}  Kf7 {[%clk 0:00:12]} 41. Rb6 {[%clk 0:00:05]}  g5 {[%clk 0:00:10]} 42. h4 {[%clk 0:00:05]}  Kg6 {[%clk 0:00:08]} 43. hxg5 {[%clk 0:00:05]}  hxg5 {[%clk 0:00:09]} 44. R4b5 {[%clk 0:00:04]}  Rh7+ {[%clk 0:00:05]} 45. Kg1 {[%clk 0:00:02]}  Rhe7 {[%clk 0:00:05]} 46. Kh2 {[%clk 0:00:01]}  Rf7 {[%clk 0:00:03]} 47. Kg1 {[%clk 0:00:01]}  Rde7 {[%clk 0:00:03]} 48. Kh2 {[%clk 0:00:01]}  Kg7 {[%clk 0:00:02]} 49. Kg3 {[%clk 0:00:01]}  Kg6 {[%clk 0:00:03]} 50. Kf2 {[%clk 0:00:02]}  Re6 {[%clk 0:00:03]} 0-1


[Site "https://www.chess.com"]

[Event "Titled Tuesday Blitz March 22 Late 2022"]
[White "Holt, Conrad"]
[Black "Martinez Alcantara, Jose Eduardo"]
[WhiteFideId "2034387"]
[BlackFideId "3805662"]
[WhiteElo "2586"]
[BlackElo "2690"]
[Result "0-1"]
[Round "08"]
[TimeControl "180+1"]
[Date "2022.03.22"]
[WhiteClock "0:00:02"]
[BlackClock "0:00:20"]

1. d4 {[%clk 0:03:00]}  Nf6 {[%clk 0:02:59]} 2. c4 {[%clk 0:03:00]}  e6 {[%clk 0:03:00]} 3. Nc3 {[%clk 0:03:00]}  Bb4 {[%clk 0:03:00]} 4. Qc2 {[%clk 0:02:58]}  d6 {[%clk 0:03:00]} 5. e4 {[%clk 0:02:56]}  O-O {[%clk 0:02:51]} 6. a3 {[%clk 0:02:51]}  Bxc3+ {[%clk 0:02:49]} 7. bxc3 {[%clk 0:02:51]}  e5 {[%clk 0:02:47]} 8. Bd3 {[%clk 0:02:51]}  Nc6 {[%clk 0:02:43]} 9. Ne2 {[%clk 0:02:50]}  Re8 {[%clk 0:02:36]} 10. O-O {[%clk 0:02:50]}  Qe7 {[%clk 0:02:28]} 11. f4 {[%clk 0:02:46]}  exd4 {[%clk 0:02:23]} 12. cxd4 {[%clk 0:02:42]}  Nxe4 {[%clk 0:02:09]} 13. d5 {[%clk 0:02:40]}  Nc5 {[%clk 0:01:46]} 14. Bxh7+ {[%clk 0:02:38]}  Kh8 {[%clk 0:01:44]} 15. Rf2 {[%clk 0:02:15]}  Na5 {[%clk 0:01:11]} 16. Bb2 {[%clk 0:02:02]}  Nxc4 {[%clk 0:01:09]} 17. Qxc4 {[%clk 0:01:54]}  Kxh7 {[%clk 0:01:08]} 18. f5 {[%clk 0:01:53]}  Qe4 {[%clk 0:00:48]} 19. Qc3 {[%clk 0:01:50]}  f6 {[%clk 0:00:47]} 20. Nd4 {[%clk 0:01:10]}  Qxd5 {[%clk 0:00:47]} 21. Raf1 {[%clk 0:00:53]}  Re4 {[%clk 0:00:39]} 22. Ne2 {[%clk 0:00:43]}  Qd3 {[%clk 0:00:35]} 23. Ng3 {[%clk 0:00:22]}  Qxc3 {[%clk 0:00:35]} 24. Bxc3 {[%clk 0:00:22]}  Rc4 {[%clk 0:00:36]} 25. Rf3 {[%clk 0:00:19]}  Bd7 {[%clk 0:00:31]} 26. Nh5 {[%clk 0:00:18]}  Ne4 {[%clk 0:00:28]} 27. Be1 {[%clk 0:00:11]}  Be8 {[%clk 0:00:23]} 28. Nf4 {[%clk 0:00:10]}  Bf7 {[%clk 0:00:24]} 29. Rh3+ {[%clk 0:00:09]}  Kg8 {[%clk 0:00:24]} 30. Re3 {[%clk 0:00:10]}  Re8 {[%clk 0:00:22]} 31. h3 {[%clk 0:00:09]}  Re5 {[%clk 0:00:22]} 32. g4 {[%clk 0:00:09]}  Ng5 {[%clk 0:00:19]} 33. Ng2 {[%clk 0:00:01]}  Rxe3 {[%clk 0:00:16]} 34. Nxe3 {[%clk 0:00:02]}  Re4 {[%clk 0:00:16]} 35. Ng2 {[%clk 0:00:01]}  Nxh3+ {[%clk 0:00:16]} 36. Kh2 {[%clk 0:00:02]}  Ng5 {[%clk 0:00:17]} 37. Kg3 {[%clk 0:00:03]}  Ra4 {[%clk 0:00:17]} 38. Bb4 {[%clk 0:00:02]}  c5 {[%clk 0:00:18]} 39. Bd2 {[%clk 0:00:02]}  Ne4+ {[%clk 0:00:17]} 40. Kh4 {[%clk 0:00:02]}  Nxd2 {[%clk 0:00:18]} 41. Rf2 {[%clk 0:00:02]}  Nc4 {[%clk 0:00:18]} 42. Re2 {[%clk 0:00:02]}  Ne5 {[%clk 0:00:19]} 43. Ne3 {[%clk 0:00:02]}  Re4 {[%clk 0:00:20]} 0-1


[Site "https://www.chess.com"]

[Event "Titled Tuesday Blitz March 22 Late 2022"]
[White "Horak, Martin"]
[Black "Karttunen, Mika"]
[WhiteFideId "367095"]
[BlackFideId "502081"]
[WhiteElo "1997"]
[BlackElo "2343"]
[Result "0-1"]
[Round "08"]
[TimeControl "180+1"]
[Date "2022.03.22"]
[WhiteClock "0:00:03"]
[BlackClock "0:00:12"]

1. d4 {[%clk 0:02:54]}  Nf6 {[%clk 0:02:59]} 2. Nf3 {[%clk 0:02:53]}  e6 {[%clk 0:02:57]} 3. c4 {[%clk 0:02:52]}  d5 {[%clk 0:02:54]} 4. Nc3 {[%clk 0:02:52]}  Bb4 {[%clk 0:02:54]} 5. Qa4+ {[%clk 0:02:51]}  Nc6 {[%clk 0:02:54]} 6. Bg5 {[%clk 0:02:51]}  h6 {[%clk 0:02:50]} 7. Bxf6 {[%clk 0:02:51]}  Qxf6 {[%clk 0:02:50]} 8. e3 {[%clk 0:02:51]}  O-O {[%clk 0:02:47]} 9. a3 {[%clk 0:02:45]}  Bxc3+ {[%clk 0:02:39]} 10. bxc3 {[%clk 0:02:45]}  dxc4 {[%clk 0:02:30]} 11. Bxc4 {[%clk 0:02:46]}  e5 {[%clk 0:02:30]} 12. O-O {[%clk 0:02:41]}  a6 {[%clk 0:02:06]} 13. Be2 {[%clk 0:02:30]}  Bd7 {[%clk 0:01:56]} 14. Qc2 {[%clk 0:02:21]}  Bf5 {[%clk 0:01:50]} 15. Bd3 {[%clk 0:02:18]}  Bxd3 {[%clk 0:01:46]} 16. Qxd3 {[%clk 0:02:19]}  Rfe8 {[%clk 0:01:37]} 17. Qc4 {[%clk 0:02:14]}  Qd6 {[%clk 0:01:29]} 18. Rfb1 {[%clk 0:02:04]}  b5 {[%clk 0:01:23]} 19. Qb3 {[%clk 0:01:57]}  Na5 {[%clk 0:01:19]} 20. Qb4 {[%clk 0:01:51]}  Nc4 {[%clk 0:01:16]} 21. Rd1 {[%clk 0:01:16]}  Rad8 {[%clk 0:01:06]} 22. Nd2 {[%clk 0:00:53]}  Nb6 {[%clk 0:01:00]} 23. Rac1 {[%clk 0:00:46]}  Nd5 {[%clk 0:00:45]} 24. Qa5 {[%clk 0:00:36]}  Qg6 {[%clk 0:00:36]} 25. c4 {[%clk 0:00:28]}  bxc4 {[%clk 0:00:36]} 26. Nxc4 {[%clk 0:00:28]}  exd4 {[%clk 0:00:35]} 27. Rxd4 {[%clk 0:00:27]}  Nxe3 {[%clk 0:00:11]} 28. fxe3 {[%clk 0:00:18]}  Rxd4 {[%clk 0:00:12]} 29. exd4 {[%clk 0:00:15]}  Re2 {[%clk 0:00:12]} 30. Qd5 {[%clk 0:00:10]}  Qd3 {[%clk 0:00:12]} 31. Ne5 {[%clk 0:00:04]}  Qe3+ {[%clk 0:00:12]} 32. Kf1 {[%clk 0:00:03]}  Qf2# {[%clk 0:00:12]} 0-1


[Site "https://www.chess.com"]